fUSD/lending_fUSD_20251006
["ID","MTS","AMOUNT","RATE_DAILY","PERIOD"]
[389606497,1759739431937,-1000.0,0.00015521,2]
[389606498,1759739431947,-370.68887098,0.00015594,2]
[389606499,1759739431957,-150.0,0.000156,2]
[389606500,1759739431966,-281.503554,0.00015929,2]
[389606501,1759739431975,-364.210651,0.00015929,2]
[389606502,1759739431984,-195.0,0.0001595,2]
[389606503,1759739431994,-300.0,0.0001595,2]
[389606504,1759739432004,-300.0,0.0001595,2]
[389606505,1759739432013,-1500.0,0.00016068,2]
[389606506,1759739432022,-848.48382393,0.00016114,2]
[389606507,1759739432033,-4738.51617607,0.00016114,2]
[389606508,1759739432043,-1181.0,0.00016146,2]
[389606509,1759739432052,-2543.0,0.00016146,2]
[389606510,1759739432062,-6239.0,0.00016146,2]
[389606511,1759739432071,-2046.0,0.00016146,2]
[389606512,1759739432080,-4117.0,0.00016146,2]
[389606513,1759739432090,-383.91,0.00016231,2]
[389606514,1759739432147,-250.0,0.00016257,2]
[389606515,1759739432156,-303.0,0.00016337,2]
[389606516,1759739432166,-5000.0,0.00016338,2]
[389606517,1759739432175,-281.503554,0.000164,3]
[389606518,1759739432184,-364.210651,0.000164,3]
[389606519,1759739432193,-10000.0,0.00016438,2]
[389606520,1759739432203,-500.0,0.00016438,2]
[389606521,1759739432212,-500.0,0.00016438,2]
[389606522,1759739432221,-500.0,0.00016438,2]
[389606523,1759739432230,-500.0,0.00016438,2]
[389606524,1759739432240,-500.0,0.00016438,2]
[389606525,1759739432249,-500.0,0.00016438,2]
[389606526,1759739432259,-3891.86,0.00016438,2]
[389606527,1759739432269,-3891.86,0.00016438,2]
[389606528,1759739432278,-3891.86,0.00016438,2]
[389606529,1759739432287,-2682.07949656,0.00016438,2]
[389606530,1759739432299,-1209.78050344,0.00016438,2]
[389606531,1759739432309,-3891.86,0.00016438,2]
[389606532,1759739432319,-3891.86,0.00016438,2]
[389606533,1759739432330,-3891.86,0.00016438,2]
[389606534,1759739432340,-3891.86,0.00016438,2]
[389606535,1759739432349,-3891.86,0.00016438,2]
[389606536,1759739432359,-3891.86,0.00016438,2]
[389606537,1759739432369,-3891.86,0.00016438,2]
[389606538,1759739432378,-3891.86,0.00016438,2]
[389606539,1759739432387,-3891.86,0.00016438,2]
[389606540,1759739432397,-3891.86,0.00016438,2]
[389606541,1759739432406,-3891.86,0.00016438,2]
[389606542,1759739432415,-3891.86,0.00016438,2]
[389606543,1759739432424,-3891.86,0.00016438,2]
[389606544,1759739432434,-3891.86,0.00016438,2]
[389606545,1759739432443,-1579.41591827,0.00016438,2]
[389606546,1759739432466,-2312.44408173,0.00016438,2]
[389606547,1759739432475,-361.06257046,0.00016438,2]
[389606548,1759739432486,-422.52576524,0.00016438,2]
[389606549,1759739432497,-3108.2716643,0.00016438,2]
[389606550,1759739432506,-421.92835396,0.00016438,2]
[389606551,1759739432525,-1267.36595496,0.00016438,2]
[389606552,1759739432535,-2202.56569108,0.00016438,2]
[389606553,1759739432545,-667.47536675,0.00016438,2]
[389606554,1759739432560,-3224.38463325,0.00016438,2]
[389606555,1759739432571,-3891.86,0.00016438,2]
[389606556,1759739432582,-3891.89229914,0.00016438,2]
[389606557,1759739432591,-516.41511691,0.00016438,2]
[389606558,1759739432603,-500.0,0.00016438,2]
[389606559,1759739432617,-500.0,0.00016438,2]
[389606560,1759739432629,-500.0,0.00016438,2]
[389606561,1759739432643,-500.0,0.00016438,2]
[389606562,1759739432658,-500.0,0.00016438,2]
[389606563,1759739432672,-451.126,0.00016438,2]
[389606564,1759739432684,-5985.27326849,0.00016438,2]
[389606565,1759739432698,-681.885,0.00016438,2]
[389606566,1759739432711,-359.67000004,0.00016438,2]
[389606567,1759739432725,-630.20173147,0.00016438,2]
[389606568,1759739432737,-396.45826853,0.00016438,2]
[389606569,1759739432751,-2558.27217871,0.00016438,2]
[389606570,1759739432774,-1917.86687133,0.00016438,2]
[389606571,1759739432790,-301.25335847,0.00016438,2]
[389606572,1759739432802,-2483.17932296,0.00016438,2]
[389606573,1759739432813,-5153.34375133,0.00016438,2]
[389606574,1759739432834,-2503.68624867,0.00016438,2]
[389606575,1759739432844,-7657.03,0.00016438,2]
[389606576,1759739432858,-7657.03,0.00016438,2]
[389606577,1759739432869,-7657.03,0.00016438,2]
[389606578,1759739432879,-7657.03,0.00016438,2]
[389606579,1759739432889,-7657.03,0.00016438,2]
[389606580,1759739432899,-7657.03,0.00016438,2]
[389606581,1759739432908,-7657.03,0.00016438,2]
[389606582,1759739432918,-949.43920001,0.00016438,2]
[389606583,1759739432930,-3403.3980021,0.00016438,2]
[389606584,1759739432942,-1567.357366,0.00016438,2]
[389606597,1759739437825,-1265.0,0.00016146,2]
[389606598,1759739437835,-1736.83543189,0.00016438,2]
[389606599,1759739437844,-7657.03,0.00016438,2]
[389606600,1759739437853,-7657.03,0.00016438,2]
[389606601,1759739437863,-7657.03,0.00016438,2]
[389606603,1759739437872,-2026.48880935,0.00016438,2]
[389606605,1759739437883,-845.12888926,0.00016438,2]
[389606606,1759739437894,-571.7328099,0.00016438,2]
[389606607,1759739437909,-2228.29999997,0.00016438,2]
[389606608,1759739437987,-1985.37949152,0.00016438,2]
[389606609,1759739437996,-957.19081608,0.00016438,2]
[389606610,1759739438096,-6699.83918392,0.00016438,2]
[389606611,1759739438105,-7657.03,0.00016438,2]
[389606612,1759739438115,-7657.03,0.00016438,2]
[389606613,1759739438124,-7657.03,0.00016438,2]
[389606614,1759739438134,-593.24136777,0.00016438,2]
[389606615,1759739438154,-7063.78863223,0.00016438,2]
[389606616,1759739438164,-7657.03,0.00016438,2]
[389606617,1759739438173,-7657.03,0.00016438,2]
[389606618,1759739438183,-7657.03,0.00016438,2]
[389606619,1759739438192,-2419.11725699,0.00016438,2]
[389606620,1759739438204,-1900.0,0.00016438,2]
[389606794,1759739440075,-3562.5345308,0.00015056,2]
[389606801,1759739440132,-276.871998,0.00015056,2]
[389606808,1759739440188,-5295.97844524,0.00015056,2]
[389606811,1759739440199,-10560.1751446,0.00015056,2]
[389606813,1759739440211,-8698.86999965,0.00015056,2]
[389606997,1759739442924,-663.91656022,0.00015056,2]
[389606998,1759739442935,-627.2799176,0.00015056,2]
[389606999,1759739442980,-554.996498,0.00015056,2]
[389607005,1759739444398,10000.0,0.00028767,120]
[389607014,1759739471576,-397.38693995,0.00015056,2]
[389607015,1759739471591,-2248.55899996,0.00015056,2]
[389607016,1759739471605,-1489.005,0.00015056,2]
[389607017,1759739471620,-1015.16726106,0.00015056,2]
[389607018,1759739525204,403.06328519,0.0002876,120]
[389607019,1759739598587,2000.0,0.00026677,120]
[389607020,1759739600538,150.0,0.00028767,120]
[389607021,1759739601400,500.0,0.00026677,120]
[389607022,1759739604390,500.0,0.00028523,120]
[389607023,1759739610278,250.38,0.00012254,2]
[389607025,1759739649798,16761.0,0.00028,120]
[389607026,1759739719565,1231.0,0.00028767,120]
[389607027,1759739720407,1231.0,0.00028767,120]
[389607028,1759739720473,1231.0,0.00028767,120]
[389607029,1759739720575,1231.0,0.00028767,120]
[389607030,1759739720711,151.0,0.00028767,120]
[389607031,1759739720853,1231.0,0.00028767,120]
[389607032,1759739720985,151.0,0.00028767,120]
[389607033,1759739721263,151.0,0.00028767,120]
[389607034,1759739721534,151.0,0.00028767,120]
[389607035,1759739722028,151.0,0.00028767,120]
[389607036,1759739722069,1231.0,0.00028767,120]
[389607037,1759739722302,151.0,0.00028767,120]
[389607038,1759739722369,1231.0,0.00028767,120]
[389607039,1759739722608,151.0,0.00028767,120]
[389607040,1759739722664,1231.0,0.00028767,120]
[389607041,1759739722889,151.0,0.00028767,120]
[389607042,1759739722998,1231.0,0.00028767,120]
[389607043,1759739723179,151.0,0.00028767,120]
[389607044,1759739723333,1231.0,0.00028767,120]
[389607045,1759739723513,151.0,0.00028767,120]
[389607046,1759739723607,1231.0,0.00028767,120]
[389607047,1759739723846,151.0,0.00028767,120]
[389607048,1759739723896,1231.0,0.00028767,120]
[389607049,1759739724123,151.0,0.00028767,120]
[389607050,1759739724161,1231.0,0.00028767,120]
[389607051,1759739724391,151.0,0.00028767,120]
[389607052,1759739724444,1231.0,0.00028767,120]
[389607053,1759739724728,1231.0,0.00028767,120]
[389607054,1759739724771,151.0,0.00028767,120]
[389607055,1759739724989,1231.0,0.00028767,120]
[389607056,1759739725059,151.0,0.00028767,120]
[389607057,1759739725339,151.0,0.00028767,120]
[389607058,1759739725614,151.0,0.00028767,120]
[389607059,1759739725889,151.0,0.00028767,120]
[389607060,1759739726223,151.0,0.00028767,120]
[389607061,1759739726554,151.0,0.00028767,120]
[389607062,1759739726887,151.0,0.00028767,120]
[389607063,1759739727222,151.0,0.00028767,120]
[389607064,1759739727559,151.0,0.00028767,120]
[389607065,1759739727891,151.0,0.00028767,120]
[389607066,1759739728157,151.0,0.00028767,120]
[389607067,1759739728418,151.0,0.00028767,120]
[389607069,1759739833841,2679.9319542,0.0002876,120]
[389607070,1759739963450,150.0,0.00028767,120]
[389607071,1759740019202,10000.0,0.00028767,120]
[389607072,1759740089914,10000.0,0.00028767,120]
[389607073,1759740100866,10000.0,0.00028767,120]
[389607074,1759740115630,10000.0,0.00028767,120]
[389607075,1759740132068,9127.056,0.00028767,120]
[389607076,1759740326314,150.0,0.00028767,120]
[389607079,1759740545127,-150.0,0.00014707,7]
[389607080,1759740545152,-150.0,0.0001477,2]
[389607081,1759740545175,-235.38825888,0.0001477,2]
[389607082,1759740545198,-152.0477047,0.0001477,2]
[389607083,1759740545221,-150.0,0.0001477,2]
[389607094,1759740632133,-500.0,0.00014799,2]
[389607096,1759740632147,-469.66651173,0.00014799,2]
[389607098,1759740632167,-408.56137997,0.000148,2]
[389607100,1759740632181,-567.78010029,0.000148,2]
[389607103,1759740632215,-7.57479785,0.000148,2]
[389607105,1759740632227,-300.0,0.00014898,2]
[389607106,1759740632239,-1200.0,0.00014898,2]
[389607107,1759740632250,-209.17627765,0.00014899,2]
[389607108,1759740632262,-319.50789183,0.00014899,2]
[389607109,1759740632273,-203.27708607,0.00014899,2]
[389607110,1759740632286,-367.82861426,0.000149,2]
[389607111,1759740632300,-747.94902305,0.000149,2]
[389607112,1759740632350,-592.95,0.000149,2]
[389607113,1759740632364,-31611.03116269,0.000149,2]
[389607114,1759740632375,-146121.21714325,0.000149,2]
[389607115,1759740632402,-1168.95995637,0.000149,2]
[389607116,1759740632415,-577.05817894,0.000149,2]
[389607117,1759740632443,-7439.27722144,0.000149,2]
[389607118,1759740632454,-2000.0,0.000149,2]
[389607119,1759740632466,-1000.0,0.000149,2]
[389607120,1759740632477,-305.84186545,0.00014971,2]
[389607129,1759740633302,-678.07441263,0.00014971,2]
[389607130,1759740633311,-528.9,0.00015047,2]
[389607131,1759740633321,-17963.27972852,0.00015056,2]
[389607133,1759740638000,-16541.20773136,0.00015056,2]
[389607134,1759740638114,-480.76864813,0.00015056,2]
[389607135,1759740638167,-28953.41483801,0.00015056,2]
[389607136,1759740638177,-200.0,0.00015117,2]
[389607137,1759740638187,-983.91627808,0.00015142,2]
[389607138,1759740638198,-666.0,0.00015191,3]
[389607139,1759740638207,-34403.50202021,0.00015221,2]
[389607140,1759740638217,-1600.0,0.00015297,2]
[389607141,1759740638227,-983.91627808,0.00015313,2]
[389607142,1759740638237,-159.0,0.00015361,2]
[389607143,1759740638246,-346.08356941,0.00015382,2]
[389607144,1759740638256,-232.0,0.00015382,2]
[389607145,1759740638265,-983.91627808,0.00015484,2]
[389607146,1759740638274,-150.0,0.000155,2]
[389607147,1759740638283,-375.53281924,0.00015522,2]
[389607148,1759740638292,-370.68887098,0.00015586,2]
[389607149,1759740638303,-150.0,0.0001559,2]
[389607150,1759740638313,-500.0,0.00015622,2]
[389607151,1759740638323,-3761.67220714,0.00015622,2]
[389607152,1759740638332,-500.0,0.00015622,2]
[389607153,1759740638342,-500.0,0.00015622,2]
[389607154,1759740638351,-500.0,0.00015622,2]
[389607155,1759740638361,-500.0,0.00015622,2]
[389607156,1759740638370,-322.6107,0.00015622,2]
[389607157,1759740638379,-500.0,0.00015622,2]
[389607158,1759740638388,-500.0,0.00015622,2]
[389607159,1759740638398,-500.0,0.00015622,2]
[389607160,1759740638408,-500.0,0.00015622,2]
[389607161,1759740638418,-500.0,0.00015622,2]
[389607162,1759740638429,-500.0,0.00015622,2]
[389607163,1759740638439,-500.0,0.00015622,2]
[389607164,1759740638449,-500.0,0.00015622,2]
[389607165,1759740638459,-500.0,0.00015622,2]
[389607166,1759740638468,-500.0,0.00015622,2]
[389607167,1759740638478,-500.0,0.00015622,2]
[389607168,1759740638487,-500.0,0.00015622,2]
[389607169,1759740638497,-231.28369723,0.00015622,2]
[389607170,1759740638506,-983.91627808,0.00015654,2]
[389607171,1759740638516,-983.91627808,0.00015825,2]
[389607172,1759740638525,-3121.0,0.00015873,2]
[389607173,1759740638535,-374.54546041,0.00015936,2]
[389607174,1759740638545,-983.91627808,0.00015996,2]
[389607175,1759740638555,-504.89298728,0.00016,2]
[389607176,1759740638564,-1000.0,0.00016001,2]
[389607177,1759740638574,-3121.0,0.00016034,2]
[389607178,1759740638584,-553.21471762,0.00016039,2]
[389607180,1759740638593,-6810.35276465,0.00016078,2]
[389607182,1759740638603,-6810.3527646,0.00016107,2]
[389607184,1759740638612,-643.95827747,0.00016116,2]
[389607189,1759740638645,-683.27527424,0.00016116,2]
[389607295,1759740640108,-811.2334003,0.00016116,2]
[389607296,1759740640119,-670.34733804,0.00016116,2]
[389607297,1759740640164,-420.85005225,0.00016116,2]
[389607298,1759740640173,-45.14516255,0.00016125,2]
[389607299,1759740640218,-260.53483745,0.00016125,2]
[389607300,1759740640228,-340.56,0.00016125,2]
[389607301,1759740640237,-561.22160356,0.00016136,2]
[389607302,1759740640249,-6249.13116104,0.00016136,2]
[389607303,1759740640258,-2046.0,0.00016146,2]
[389607304,1759740640268,-810.0,0.00016146,2]
[389607305,1759740640277,-3401.0,0.00016146,2]
[389607306,1759740640287,-1265.0,0.00016146,2]
[389607307,1759740640297,-1586.0,0.00016146,2]
[389607308,1759740640306,-604.0,0.00016146,2]
[389607309,1759740640315,-570.0,0.00016146,2]
[389607310,1759740640325,-1307.0,0.00016146,2]
[389607311,1759740640335,-815.0,0.00016146,2]
[389607312,1759740640344,-621.0,0.00016146,2]
[389607313,1759740640354,-6239.0,0.00016146,2]
[389607314,1759740640364,-4117.0,0.00016146,2]
[389607315,1759740640374,-901.362,0.00016146,2]
[389607316,1759740640383,-6810.3527646,0.00016165,2]
[389607317,1759740640392,-983.91627808,0.00016167,2]
[389607318,1759740640402,-2000.0,0.00016178,2]
[389607319,1759740640411,-218.0007235,0.00016202,2]
[389607320,1759740640421,-7483.6893856,0.00016202,2]
[389607321,1759740640432,-166.54101913,0.00016238,2]
[389607322,1759740640441,-340.57,0.00016262,2]
[389607324,1759740640450,-8391.7088061,0.0001628,2]
[389607325,1759740640459,-420.0,0.00016307,2]
[389607326,1759740640469,-168.0,0.0001633,2]
[389607327,1759740640478,-161.39030083,0.00016338,2]
[389607328,1759740640487,-219.98194005,0.00016338,2]
[389607330,1759740640680,-983.91627808,0.00016338,2]
[389607331,1759740640699,-295.69281306,0.00016338,2]
[389607332,1759740640708,-228.75481187,0.00016338,2]
[389607333,1759740640718,-995.71118432,0.00016338,2]
[389607334,1759740640727,-250.07044679,0.00016338,2]
[389607335,1759740640736,-158.77418858,0.00016338,2]
[389607336,1759740640745,-5000.0,0.00016338,2]
[389607337,1759740640754,-281.64961444,0.00016352,2]
[389607338,1759740640763,-700.0,0.0001637,2]
[389607339,1759740640773,-701.2412328,0.0001637,2]
[389607340,1759740640782,-825.7,0.00016378,2]
[389607341,1759740640792,-36287.0,0.000164,2]
[389607342,1759740640801,-219.3735151,0.00016411,2]
[389607343,1759740640811,-374.37781959,0.00016416,2]
[389607344,1759740640822,-2746.62218041,0.00016416,2]
[389607345,1759740640832,-1029.36,0.00016428,2]
[389607346,1759740640841,-235.23027512,0.00016428,2]
[389607347,1759740640850,-235.23027512,0.00016428,2]
[389607348,1759740640859,-235.23027512,0.00016428,2]
[389607349,1759740640868,-151.0,0.00016435,2]
[389607350,1759740640877,-1000.0,0.00016437,2]
[389607351,1759740640886,-151.85514932,0.00016437,2]
[389607352,1759740640895,-35840.93731411,0.00016438,2]
[389607353,1759740640906,-4672.40176,0.00016438,2]
[389607354,1759740640917,-2019.43982506,0.00016438,2]
[389607355,1759740640928,-296.3841437,0.00016438,2]
[389607356,1759740640947,-136921.5664539,0.00016438,2]
[389607357,1759740640957,-500.0,0.00016438,2]
[389607358,1759740640966,-500.0,0.00016438,2]
[389607359,1759740640975,-295.71,0.00016438,2]
[389607360,1759740640985,-500.0,0.00016438,2]
[389607361,1759740640994,-500.0,0.00016438,2]
[389607362,1759740641003,-516.43,0.00016438,2]
[389607363,1759740641012,-500.0,0.00016438,2]
[389607364,1759740641022,-500.0,0.00016438,2]
[389607365,1759740641031,-500.0,0.00016438,2]
[389607366,1759740641040,-500.0,0.00016438,2]
[389607367,1759740641050,-319.54,0.00016438,2]
[389607368,1759740641063,-506.09623327,0.00016438,2]
[389607369,1759740641071,-500.0,0.00016438,2]
[389607370,1759740641081,-500.0,0.00016438,2]
[389607371,1759740641090,-621.99,0.00016438,2]
[389607372,1759740641100,-502.42173674,0.00016438,2]
[389607373,1759740641109,-505.29025057,0.00016438,2]
[389607374,1759740641118,-585.76,0.00016438,2]
[389607375,1759740641127,-500.0,0.00016438,2]
[389607376,1759740641136,-500.0,0.00016438,2]
[389607377,1759740641145,-615.91481309,0.00016438,2]
[389607378,1759740641160,-500.0,0.00016438,2]
[389607379,1759740641169,-611.18,0.00016438,2]
[389607380,1759740641179,-500.0,0.00016438,2]
[389607381,1759740641188,-500.0,0.00016438,2]
[389607382,1759740641198,-500.0,0.00016438,2]
[389607383,1759740641207,-500.0,0.00016438,2]
[389607384,1759740641216,-511.03999112,0.00016438,2]
[389607385,1759740641227,-369.90160621,0.00016438,2]
[389607386,1759740641236,-639.79856834,0.00016438,2]
[389607387,1759740641246,-535.72126292,0.00016438,2]
[389607388,1759740641255,-500.0,0.00016438,2]
[389607389,1759740641264,-501.41618349,0.00016438,2]
[389607390,1759740641273,-500.0,0.00016438,2]
[389607391,1759740641283,-500.0,0.00016438,2]
[389607392,1759740641293,-500.0,0.00016438,2]
[389607393,1759740641303,-503.9858607,0.00016438,2]
[389607394,1759740641314,-500.0,0.00016438,2]
[389607395,1759740641323,-500.0,0.00016438,2]
[389607396,1759740641333,-500.0,0.00016438,2]
[389607397,1759740641342,-500.0,0.00016438,2]
[389607398,1759740641351,-500.0,0.00016438,2]
[389607399,1759740641360,-500.0,0.00016438,2]
[389607400,1759740641370,-500.0,0.00016438,2]
[389607401,1759740641379,-500.0,0.00016438,2]
[389607402,1759740641388,-504.62452564,0.00016438,2]
[389607403,1759740641398,-500.0,0.00016438,2]
[389607404,1759740641407,-500.0,0.00016438,2]
[389607405,1759740641416,-500.0,0.00016438,2]
[389607406,1759740641426,-500.0,0.00016438,2]
[389607407,1759740641435,-500.0,0.00016438,2]
[389607408,1759740641444,-500.0,0.00016438,2]
[389607409,1759740641454,-500.0,0.00016438,2]
[389607410,1759740641463,-601.60808496,0.00016438,2]
[389607411,1759740641473,-500.0,0.00016438,2]
[389607412,1759740641482,-500.0,0.00016438,2]
[389607413,1759740641492,-500.0,0.00016438,2]
[389607414,1759740641502,-500.0,0.00016438,2]
[389607415,1759740641512,-500.0,0.00016438,2]
[389607416,1759740641522,-500.0,0.00016438,2]
[389607417,1759740641532,-500.0,0.00016438,2]
[389607418,1759740641541,-500.0,0.00016438,2]
[389607419,1759740641550,-500.0,0.00016438,2]
[389607420,1759740641560,-500.0,0.00016438,2]
[389607421,1759740641569,-500.0,0.00016438,2]
[389607422,1759740641578,-500.0,0.00016438,2]
[389607423,1759740641587,-500.0,0.00016438,2]
[389607424,1759740641596,-500.0,0.00016438,2]
[389607425,1759740641606,-500.0,0.00016438,2]
[389607426,1759740641615,-500.0,0.00016438,2]
[389607427,1759740641624,-500.0,0.00016438,2]
[389607428,1759740641634,-500.0,0.00016438,2]
[389607429,1759740641643,-500.0,0.00016438,2]
[389607430,1759740641652,-500.0,0.00016438,2]
[389607431,1759740641663,-514.1573117,0.00016438,2]
[389607432,1759740641672,-507.04417914,0.00016438,2]
[389607433,1759740641682,-500.0,0.00016438,2]
[389607434,1759740641691,-500.0,0.00016438,2]
[389607435,1759740641702,-500.0,0.00016438,2]
[389607436,1759740641711,-500.0,0.00016438,2]
[389607437,1759740641720,-500.0,0.00016438,2]
[389607438,1759740641729,-500.0,0.00016438,2]
[389607439,1759740641739,-500.0,0.00016438,2]
[389607440,1759740641748,-358.74689013,0.00016438,2]
[389607441,1759740641757,-500.0,0.00016438,2]
[389607442,1759740641766,-500.0,0.00016438,2]
[389607443,1759740641775,-500.0,0.00016438,2]
[389607444,1759740641785,-500.0,0.00016438,2]
[389607445,1759740641795,-500.0,0.00016438,2]
[389607446,1759740641804,-500.0,0.00016438,2]
[389607447,1759740641813,-500.0,0.00016438,2]
[389607448,1759740641822,-500.0,0.00016438,2]
[389607449,1759740641831,-221.64589336,0.00016438,2]
[389607450,1759740641840,-500.0,0.00016438,2]
[389607451,1759740641852,-500.0,0.00016438,2]
[389607452,1759740641868,-500.0,0.00016438,2]
[389607453,1759740641881,-507.00385987,0.00016438,2]
[389607454,1759740641891,-500.0,0.00016438,2]
[389607455,1759740641900,-500.0,0.00016438,2]
[389607456,1759740641909,-507.05111488,0.00016438,2]
[389607457,1759740641920,-500.0,0.00016438,2]
[389607458,1759740641929,-506.70664256,0.00016438,2]
[389607459,1759740641939,-523.05514854,0.00016438,2]
[389607460,1759740641949,-500.0,0.00016438,2]
[389607461,1759740641958,-541.51075802,0.00016438,2]
[389607462,1759740641967,-444.45210582,0.00016438,2]
[389607463,1759740641977,-489.26435047,0.00016438,2]
[389607464,1759740641986,-509.83339817,0.00016438,2]
[389607465,1759740641995,-512.72854926,0.00016438,2]
[389607466,1759740642004,-514.04666635,0.00016438,2]
[389607467,1759740642013,-500.0,0.00016438,2]
[389607468,1759740642024,-500.0,0.00016438,2]
[389607469,1759740642033,-534.43,0.00016438,2]
[389607470,1759740642044,-522.97186009,0.00016438,2]
[389607471,1759740642054,-500.0,0.00016438,2]
[389607472,1759740642063,-503.8433438,0.00016438,2]
[389607473,1759740642073,-600.01,0.00016438,2]
[389607474,1759740642082,-500.0,0.00016438,2]
[389607475,1759740642091,-500.0,0.00016438,2]
[389607476,1759740642100,-500.0,0.00016438,2]
[389607477,1759740642110,-500.0,0.00016438,2]
[389607478,1759740642120,-500.0,0.00016438,2]
[389607479,1759740642129,-500.0,0.00016438,2]
[389607480,1759740642139,-500.0,0.00016438,2]
[389607481,1759740642149,-500.0,0.00016438,2]
[389607482,1759740642161,-246.16575968,0.00016438,2]
[389607483,1759740642170,-500.0,0.00016438,2]
[389607484,1759740642180,-500.0,0.00016438,2]
[389607485,1759740642189,-500.0,0.00016438,2]
[389607486,1759740642200,-427.33,0.00016438,2]
[389607487,1759740642211,-641.13,0.00016438,2]
[389607488,1759740642220,-151.0,0.00016438,2]
[389607489,1759740642231,-151.0,0.00016438,2]
[389607490,1759740642241,-151.0,0.00016438,2]
[389607491,1759740642250,-151.0,0.00016438,2]
[389607492,1759740642259,-248.404178,0.00016438,2]
[389607493,1759740642268,-500.0,0.00016438,2]
[389607494,1759740642277,-500.0,0.00016438,2]
[389607495,1759740642287,-500.0,0.00016438,2]
[389607496,1759740642297,-500.0,0.00016438,2]
[389607497,1759740642307,-497.18,0.00016438,2]
[389607498,1759740642319,-533.47298595,0.00016438,2]
[389607499,1759740642329,-500.0,0.00016438,2]
[389607500,1759740642338,-500.0,0.00016438,2]
[389607501,1759740642347,-500.0,0.00016438,2]
[389607502,1759740642356,-500.0,0.00016438,2]
[389607503,1759740642366,-534.78,0.00016438,2]
[389607504,1759740642375,-550.28572733,0.00016438,2]
[389607505,1759740642384,-500.0,0.00016438,2]
[389607506,1759740642394,-500.0,0.00016438,2]
[389607507,1759740642404,-500.0,0.00016438,2]
[389607508,1759740642413,-257.77,0.00016438,2]
[389607509,1759740642423,-500.0,0.00016438,2]
[389607510,1759740642432,-500.0,0.00016438,2]
[389607511,1759740642441,-500.0,0.00016438,2]
[389607512,1759740642451,-500.0,0.00016438,2]
[389607513,1759740642461,-500.0,0.00016438,2]
[389607514,1759740642470,-500.0,0.00016438,2]
[389607515,1759740642478,-500.0,0.00016438,2]
[389607516,1759740642487,-500.0,0.00016438,2]
[389607517,1759740642496,-500.0,0.00016438,2]
[389607518,1759740642505,-629.03419941,0.00016438,2]
[389607519,1759740642514,-460.61728767,0.00016438,2]
[389607520,1759740642523,-500.0,0.00016438,2]
[389607521,1759740642532,-500.0,0.00016438,2]
[389607522,1759740642541,-474.47589778,0.00016438,2]
[389607523,1759740642550,-183.78770694,0.00016438,2]
[389607524,1759740642559,-500.0,0.00016438,2]
[389607525,1759740642567,-334.21,0.00016438,2]
[389607526,1759740642576,-152.904256,0.00016438,2]
[389607527,1759740642585,-153.55137,0.00016438,2]
[389607528,1759740642594,-517.67081935,0.00016438,2]
[389607529,1759740642604,-10000.0,0.00016438,2]
[389607530,1759740642613,-402.81527776,0.00016438,2]
[389607531,1759740642624,-506.40545619,0.00016438,2]
[389607532,1759740642634,-500.0,0.00016438,2]
[389607533,1759740642645,-500.0,0.00016438,2]
[389607534,1759740642654,-500.0,0.00016438,2]
[389607535,1759740642663,-511.2543124,0.00016438,2]
[389607536,1759740642672,-511.00357339,0.00016438,2]
[389607537,1759740642682,-372.25495195,0.00016438,2]